[Event "Titled Tuesday Blitz May 9 Early 2023"]
[White "Sourath Biswas"]
[Black "electrosaw"]
[WhiteFideId "35091484"]
[WhiteElo "2171"]
[BlackElo "2452"]
[Result "1-0"]
[Round "06"]
[TimeControl "180+2"]
[Date "2023.05.09"]
[WhiteClock "0:01:29"]
[BlackClock "0:01:46"]

1. d4 {[%clk 0:03:00]}  Nf6 {[%clk 0:02:59]} 2. Bf4 {[%clk 0:03:01]}  c5 {[%clk 0:02:59]} 3. e3 {[%clk 0:02:58]}  Nd5 {[%clk 0:02:58]} 4. Bg3 {[%clk 0:02:56]}  Qb6 {[%clk 0:02:58]} 5. c4 {[%clk 0:02:57]}  Nf6 {[%clk 0:02:54]} 6. Nc3 {[%clk 0:02:56]}  Qxb2 {[%clk 0:02:51]} 7. Nge2 {[%clk 0:02:57]}  Qb6 {[%clk 0:02:45]} 8. Rb1 {[%clk 0:02:57]}  Qd8 {[%clk 0:02:45]} 9. Nb5 {[%clk 0:02:45]}  Na6 {[%clk 0:02:45]} 10. Qa4 {[%clk 0:02:46]}  Ne4 {[%clk 0:02:34]} 11. Bf4 {[%clk 0:02:45]}  g5 {[%clk 0:02:29]} 12. Be5 {[%clk 0:02:28]}  f6 {[%clk 0:02:29]} 13. Qc2 {[%clk 0:02:24]}  Qa5+ {[%clk 0:02:25]} 14. Nbc3 {[%clk 0:02:07]}  Nxc3 {[%clk 0:02:24]} 15. Nxc3 {[%clk 0:02:08]}  fxe5 {[%clk 0:02:24]} 16. Rb5 {[%clk 0:02:00]}  Qd8 {[%clk 0:02:22]} 17. Be2 {[%clk 0:01:58]}  d6 {[%clk 0:02:08]} 18. Bh5+ {[%clk 0:01:55]}  Kd7 {[%clk 0:02:08]} 19. dxe5 {[%clk 0:01:51]}  Nc7 {[%clk 0:01:50]} 20. Rxc5 {[%clk 0:01:30]}  dxc5 {[%clk 0:01:47]} 21. Qd2+ {[%clk 0:01:29]}  Nd5 {[%clk 0:01:47]} 22. Qxd5+ {[%clk 0:01:28]}  Kc7 {[%clk 0:01:46]} 23. Nb5+ {[%clk 0:01:29]} 1-0


[Site "https://www.chess.com"]

[Event "Titled Tuesday Blitz May 9 Early 2023"]
[White "Kleiman, Jake"]
[Black "Rangel, Daniel"]
[WhiteFideId "2020041"]
[BlackFideId "2124475"]
[WhiteElo "2593"]
[BlackElo "2256"]
[Result "1-0"]
[Round "06"]
[TimeControl "180+2"]
[Date "2023.05.09"]
[WhiteClock "0:00:09"]
[BlackClock "0:00:00"]

1. e4 {[%clk 0:02:56]}  c5 {[%clk 0:03:00]} 2. c3 {[%clk 0:02:56]}  g6 {[%clk 0:03:00]} 3. d4 {[%clk 0:02:56]}  cxd4 {[%clk 0:03:01]} 4. cxd4 {[%clk 0:02:57]}  d5 {[%clk 0:03:01]} 5. e5 {[%clk 0:02:58]}  Bg7 {[%clk 0:03:00]} 6. Nc3 {[%clk 0:02:58]}  Nc6 {[%clk 0:02:58]} 7. h3 {[%clk 0:02:52]}  Bh6 {[%clk 0:02:57]} 8. f4 {[%clk 0:02:48]}  e6 {[%clk 0:02:46]} 9. Nf3 {[%clk 0:02:48]}  Nge7 {[%clk 0:02:32]} 10. g4 {[%clk 0:02:45]}  O-O {[%clk 0:02:30]} 11. Bg2 {[%clk 0:02:45]}  f6 {[%clk 0:02:29]} 12. exf6 {[%clk 0:02:43]}  Rxf6 {[%clk 0:02:29]} 13. g5 {[%clk 0:02:43]}  Nf5 {[%clk 0:02:23]} 14. gxf6 {[%clk 0:02:34]}  Qxf6 {[%clk 0:02:24]} 15. Ne2 {[%clk 0:02:29]}  b6 {[%clk 0:02:21]} 16. Qa4 {[%clk 0:02:23]}  Bd7 {[%clk 0:02:18]} 17. Qd1 {[%clk 0:02:18]}  Rc8 {[%clk 0:02:14]} 18. a3 {[%clk 0:02:17]}  Na5 {[%clk 0:02:12]} 19. O-O {[%clk 0:02:16]}  Nc4 {[%clk 0:02:09]} 20. Ne5 {[%clk 0:02:04]}  Bb5 {[%clk 0:01:52]} 21. Nc3 {[%clk 0:01:59]}  Nce3 {[%clk 0:01:49]} 22. Bxe3 {[%clk 0:01:54]}  Nxe3 {[%clk 0:01:50]} 23. Ng4 {[%clk 0:01:21]}  Nxg4 {[%clk 0:01:38]} 24. Nxb5 {[%clk 0:01:13]}  Ne3 {[%clk 0:01:35]} 25. Qd3 {[%clk 0:01:09]}  Nxf1 {[%clk 0:01:33]} 26. Rxf1 {[%clk 0:01:09]}  Bxf4 {[%clk 0:01:32]} 27. Nxa7 {[%clk 0:01:02]}  Rf8 {[%clk 0:01:17]} 28. Nb5 {[%clk 0:00:58]}  g5 {[%clk 0:01:16]} 29. Nc3 {[%clk 0:00:57]}  Rc8 {[%clk 0:01:07]} 30. Ne2 {[%clk 0:00:55]}  Rc4 {[%clk 0:01:05]} 31. b3 {[%clk 0:00:52]}  Rc7 {[%clk 0:01:05]} 32. Nxf4 {[%clk 0:00:51]}  gxf4 {[%clk 0:01:05]} 33. Kh1 {[%clk 0:00:49]}  Rf7 {[%clk 0:01:04]} 34. Bf3 {[%clk 0:00:44]}  Kh8 {[%clk 0:01:01]} 35. Rg1 {[%clk 0:00:42]}  Rg7 {[%clk 0:00:58]} 36. Rxg7 {[%clk 0:00:38]}  Kxg7 {[%clk 0:00:59]} 37. Qd2 {[%clk 0:00:33]}  Qh4 {[%clk 0:00:49]} 38. Bg4 {[%clk 0:00:26]}  Qf6 {[%clk 0:00:38]} 39. Qd3 {[%clk 0:00:22]}  e5 {[%clk 0:00:27]} 40. dxe5 {[%clk 0:00:22]}  Qxe5 {[%clk 0:00:28]} 41. Kg2 {[%clk 0:00:20]}  h5 {[%clk 0:00:21]} 42. Bf3 {[%clk 0:00:19]}  Qg5+ {[%clk 0:00:20]} 43. Kf1 {[%clk 0:00:16]}  Qg3 {[%clk 0:00:20]} 44. Qd4+ {[%clk 0:00:14]}  Kf8 {[%clk 0:00:16]} 45. Qf6+ {[%clk 0:00:13]}  Ke8 {[%clk 0:00:13]} 46. Bxh5+ {[%clk 0:00:13]}  Kd7 {[%clk 0:00:14]} 47. Bg4+ {[%clk 0:00:13]}  Kc7 {[%clk 0:00:13]} 48. Qe5+ {[%clk 0:00:12]}  Kc6 {[%clk 0:00:13]} 49. Qe6+ {[%clk 0:00:11]}  Kc5 {[%clk 0:00:13]} 50. Qe1 {[%clk 0:00:10]}  Qxb3 {[%clk 0:00:11]} 51. Qc1+ {[%clk 0:00:10]}  Kb5 {[%clk 0:00:09]} 52. Be2+ {[%clk 0:00:09]}  Ka4 {[%clk 0:00:00]} 53. Bd1 {[%clk 0:00:09]} 1-0


[Site "https://www.chess.com"]

[Event "Titled Tuesday Blitz May 9 Early 2023"]
[White "Orzech, Dominik"]
[Black "Omranalhosani21"]
[WhiteFideId "1115065"]
[WhiteElo "2260"]
[BlackElo "2592"]
[Result "0-1"]
[Round "06"]
[TimeControl "180+2"]
[Date "2023.05.09"]
[WhiteClock "0:00:00"]
[BlackClock "0:00:06"]

1. d4 {[%clk 0:03:00]}  d5 {[%clk 0:02:56]} 2. Nf3 {[%clk 0:03:00]}  Nd7 {[%clk 0:02:55]} 3. c4 {[%clk 0:02:59]}  dxc4 {[%clk 0:02:55]} 4. e4 {[%clk 0:02:57]}  Nb6 {[%clk 0:02:55]} 5. Nbd2 {[%clk 0:02:55]}  e6 {[%clk 0:02:53]} 6. Nxc4 {[%clk 0:02:54]}  Nf6 {[%clk 0:02:50]} 7. Ncd2 {[%clk 0:02:45]}  Be7 {[%clk 0:02:42]} 8. Qc2 {[%clk 0:02:35]}  O-O {[%clk 0:02:40]} 9. Be2 {[%clk 0:02:35]}  Bd7 {[%clk 0:02:37]} 10. O-O {[%clk 0:02:35]}  Rc8 {[%clk 0:02:34]} 11. Nb3 {[%clk 0:02:30]}  Ba4 {[%clk 0:02:28]} 12. Rd1 {[%clk 0:02:30]}  Qe8 {[%clk 0:02:00]} 13. Be3 {[%clk 0:02:21]}  Bb5 {[%clk 0:01:44]} 14. Nc5 {[%clk 0:02:12]}  Bxe2 {[%clk 0:01:40]} 15. Qxe2 {[%clk 0:02:12]}  Rb8 {[%clk 0:01:31]} 16. Rac1 {[%clk 0:02:08]}  Nbd7 {[%clk 0:01:21]} 17. Nxd7 {[%clk 0:01:57]}  Qxd7 {[%clk 0:01:15]} 18. Ne5 {[%clk 0:01:57]}  Qd8 {[%clk 0:01:11]} 19. d5 {[%clk 0:01:29]}  exd5 {[%clk 0:01:02]} 20. exd5 {[%clk 0:01:26]}  Bd6 {[%clk 0:01:02]} 21. Nc4 {[%clk 0:01:17]}  Re8 {[%clk 0:00:57]} 22. h3 {[%clk 0:01:13]}  a6 {[%clk 0:00:53]} 23. Qf3 {[%clk 0:01:12]}  Ne4 {[%clk 0:00:50]} 24. Ba7 {[%clk 0:01:08]}  Ra8 {[%clk 0:00:48]} 25. Bd4 {[%clk 0:01:08]}  Qg5 {[%clk 0:00:45]} 26. Re1 {[%clk 0:01:02]}  Nd2 {[%clk 0:00:40]} 27. Nxd2 {[%clk 0:00:59]}  Qxd2 {[%clk 0:00:40]} 28. Bc3 {[%clk 0:00:59]}  Qg5 {[%clk 0:00:36]} 29. g3 {[%clk 0:01:00]}  h6 {[%clk 0:00:34]} 30. h4 {[%clk 0:00:59]}  Qg6 {[%clk 0:00:33]} 31. Kg2 {[%clk 0:00:56]}  h5 {[%clk 0:00:23]} 32. Re3 {[%clk 0:00:50]}  Rxe3 {[%clk 0:00:19]} 33. Qxe3 {[%clk 0:00:51]}  Qf5 {[%clk 0:00:18]} 34. Qd4 {[%clk 0:00:48]}  f6 {[%clk 0:00:18]} 35. Re1 {[%clk 0:00:47]}  Rd8 {[%clk 0:00:18]} 36. Qc4 {[%clk 0:00:33]}  Bf8 {[%clk 0:00:16]} 37. d6+ {[%clk 0:00:31]}  Kh7 {[%clk 0:00:11]} 38. dxc7 {[%clk 0:00:31]}  Rc8 {[%clk 0:00:12]} 39. Qf7 {[%clk 0:00:25]}  Bd6 {[%clk 0:00:11]} 40. Re7 {[%clk 0:00:15]}  Bxe7 {[%clk 0:00:11]} 41. Qxe7 {[%clk 0:00:16]}  Qd5+ {[%clk 0:00:11]} 42. Kh2 {[%clk 0:00:16]}  Qc6 {[%clk 0:00:09]} 43. Qf7 {[%clk 0:00:15]}  Rxc7 {[%clk 0:00:09]} 44. Qxh5+ {[%clk 0:00:15]}  Kg8 {[%clk 0:00:09]} 45. Qg6 {[%clk 0:00:16]}  Qc5 {[%clk 0:00:08]} 46. Kg2 {[%clk 0:00:16]}  Qd5+ {[%clk 0:00:08]} 47. Kg1 {[%clk 0:00:15]}  Re7 {[%clk 0:00:07]} 48. h5 {[%clk 0:00:16]}  Qd1+ {[%clk 0:00:07]} 49. Kg2 {[%clk 0:00:15]}  Qd5+ {[%clk 0:00:07]} 50. Kg1 {[%clk 0:00:15]}  Qg5 {[%clk 0:00:06]} 51. Qd3 {[%clk 0:00:13]}  Qxh5 {[%clk 0:00:06]} 52. Qd8+ {[%clk 0:00:13]}  Qe8 {[%clk 0:00:06]} 53. Qc7 {[%clk 0:00:00]}  Rxc7 {[%clk 0:00:06]} 0-1


[Site "https://www.chess.com"]

[Event "Titled Tuesday Blitz May 9 Early 2023"]
[White "Lorenzo De La Riva, Lazaro"]
[Black "Nissinen, Niilo Man"]
[WhiteFideId "2268809"]
[BlackFideId "30950767"]
[WhiteElo "2294"]
[BlackElo "1952"]
[Result "0-1"]
[Round "06"]
[TimeControl "180+2"]
[Date "2023.05.09"]
[WhiteClock "0:00:00"]
[BlackClock "0:00:03"]

1. e4 {[%clk 0:03:00]}  c5 {[%clk 0:02:59]} 2. Nf3 {[%clk 0:03:01]}  Nc6 {[%clk 0:03:00]} 3. d4 {[%clk 0:03:01]}  cxd4 {[%clk 0:03:00]} 4. Nxd4 {[%clk 0:03:02]}  e5 {[%clk 0:03:00]} 5. Nb5 {[%clk 0:03:02]}  d6 {[%clk 0:03:01]} 6. N1c3 {[%clk 0:03:02]}  Be6 {[%clk 0:02:57]} 7. Na3 {[%clk 0:02:53]}  Nf6 {[%clk 0:02:46]} 8. Nc4 {[%clk 0:02:53]}  d5 {[%clk 0:02:45]} 9. exd5 {[%clk 0:02:52]}  Nxd5 {[%clk 0:02:44]} 10. Nxd5 {[%clk 0:02:53]}  Qxd5 {[%clk 0:02:43]} 11. Qxd5 {[%clk 0:02:48]}  Bxd5 {[%clk 0:02:44]} 12. Ne3 {[%clk 0:02:48]}  Be6 {[%clk 0:02:43]} 13. Bd2 {[%clk 0:02:45]}  O-O-O {[%clk 0:02:40]} 14. Bc4 {[%clk 0:02:38]}  Bxc4 {[%clk 0:02:19]} 15. Nxc4 {[%clk 0:02:39]}  Bc5 {[%clk 0:02:16]} 16. O-O-O {[%clk 0:02:37]}  f6 {[%clk 0:01:50]} 17. f3 {[%clk 0:02:37]}  Nd4 {[%clk 0:01:40]} 18. Kb1 {[%clk 0:02:34]}  Ne6 {[%clk 0:01:37]} 19. g3 {[%clk 0:02:20]}  Rd4 {[%clk 0:01:36]} 20. b3 {[%clk 0:01:38]}  Rhd8 {[%clk 0:01:35]} 21. c3 {[%clk 0:01:35]}  Rd3 {[%clk 0:01:34]} 22. Kc2 {[%clk 0:01:34]}  Rxf3 {[%clk 0:01:30]} 23. b4 {[%clk 0:01:30]}  Be7 {[%clk 0:01:22]} 24. Rhf1 {[%clk 0:01:27]}  Rfd3 {[%clk 0:01:08]} 25. a4 {[%clk 0:01:14]}  h5 {[%clk 0:00:50]} 26. Ne3 {[%clk 0:01:12]}  Ng5 {[%clk 0:00:43]} 27. Nf5 {[%clk 0:01:10]}  Bf8 {[%clk 0:00:43]} 28. Bxg5 {[%clk 0:00:49]}  Rxd1 {[%clk 0:00:44]} 29. Rxd1 {[%clk 0:00:49]}  Rxd1 {[%clk 0:00:44]} 30. Kxd1 {[%clk 0:00:50]}  fxg5 {[%clk 0:00:45]} 31. Ke2 {[%clk 0:00:50]}  Kd7 {[%clk 0:00:45]} 32. Kf3 {[%clk 0:00:49]}  Ke6 {[%clk 0:00:43]} 33. Ne3 {[%clk 0:00:49]}  Be7 {[%clk 0:00:33]} 34. Ke4 {[%clk 0:00:45]}  g4 {[%clk 0:00:29]} 35. Nd5 {[%clk 0:00:38]}  Bd6 {[%clk 0:00:23]} 36. c4 {[%clk 0:00:35]}  a5 {[%clk 0:00:19]} 37. bxa5 {[%clk 0:00:31]}  Bc5 {[%clk 0:00:20]} 38. Ne3 {[%clk 0:00:16]}  g5 {[%clk 0:00:14]} 39. Nf1 {[%clk 0:00:11]}  h4 {[%clk 0:00:11]} 40. Kd3 {[%clk 0:00:07]}  Kf5 {[%clk 0:00:06]} 41. Nd2 {[%clk 0:00:04]}  Bg1 {[%clk 0:00:05]} 42. gxh4 {[%clk 0:00:04]}  gxh4 {[%clk 0:00:05]} 43. Nf1 {[%clk 0:00:04]}  Kf4 {[%clk 0:00:04]} 44. c5 {[%clk 0:00:03]}  g3 {[%clk 0:00:04]} 45. hxg3+ {[%clk 0:00:03]}  hxg3 {[%clk 0:00:03]} 46. a6 {[%clk 0:00:03]}  bxa6 {[%clk 0:00:02]} 47. c6 {[%clk 0:00:03]}  g2 {[%clk 0:00:02]} 48. Nd2 {[%clk 0:00:03]}  Bb6 {[%clk 0:00:02]} 49. Nc4 {[%clk 0:00:01]}  g1=Q {[%clk 0:00:02]} 50. Nxb6 {[%clk 0:00:00]}  Qxb6 {[%clk 0:00:03]} 0-1


[Site "https://www.chess.com"]

[Event "Titled Tuesday Blitz May 9 Early 2023"]
[White "Jaivardhan Raj"]
[Black "Bruedigam, Martin"]
[WhiteFideId "25744437"]
[BlackFideId "24608033"]
[WhiteElo "1772"]
[BlackElo "2331"]
[Result "0-1"]
[Round "06"]
[TimeControl "180+2"]
[Date "2023.05.09"]
[WhiteClock "0:01:07"]
[BlackClock "0:01:40"]

1. e4 {[%clk 0:03:00]}  c6 {[%clk 0:03:00]} 2. d4 {[%clk 0:03:00]}  d5 {[%clk 0:03:00]} 3. Nd2 {[%clk 0:03:00]}  dxe4 {[%clk 0:03:01]} 4. Nxe4 {[%clk 0:03:00]}  Bf5 {[%clk 0:03:01]} 5. Ng3 {[%clk 0:03:00]}  Bg6 {[%clk 0:03:02]} 6. Nf3 {[%clk 0:03:00]}  Nd7 {[%clk 0:03:01]} 7. h4 {[%clk 0:03:00]}  h6 {[%clk 0:03:01]} 8. h5 {[%clk 0:03:00]}  Bh7 {[%clk 0:03:02]} 9. Bd3 {[%clk 0:03:00]}  Bxd3 {[%clk 0:03:02]} 10. Qxd3 {[%clk 0:03:00]}  e6 {[%clk 0:03:03]} 11. Bd2 {[%clk 0:03:00]}  Ngf6 {[%clk 0:03:03]} 12. O-O-O {[%clk 0:02:59]}  Be7 {[%clk 0:03:03]} 13. Rde1 {[%clk 0:02:58]}  O-O {[%clk 0:03:02]} 14. Kb1 {[%clk 0:02:54]}  c5 {[%clk 0:02:59]} 15. dxc5 {[%clk 0:02:50]}  Nxc5 {[%clk 0:02:57]} 16. Qxd8 {[%clk 0:02:50]}  Rfxd8 {[%clk 0:02:56]} 17. Bb4 {[%clk 0:02:50]}  a5 {[%clk 0:02:53]} 18. Ba3 {[%clk 0:02:50]}  b5 {[%clk 0:02:52]} 19. c3 {[%clk 0:02:45]}  b4 {[%clk 0:02:51]} 20. cxb4 {[%clk 0:02:44]}  Nd3 {[%clk 0:02:51]} 21. b5 {[%clk 0:02:16]}  Bxa3 {[%clk 0:02:47]} 22. bxa3 {[%clk 0:02:15]}  Nxe1 {[%clk 0:02:47]} 23. Rxe1 {[%clk 0:02:16]}  a4 {[%clk 0:02:47]} 24. Kc2 {[%clk 0:02:13]}  Rac8+ {[%clk 0:02:46]} 25. Kb2 {[%clk 0:02:12]}  Rc5 {[%clk 0:02:17]} 26. Re5 {[%clk 0:01:49]}  Rxe5 {[%clk 0:02:11]} 27. Nxe5 {[%clk 0:01:50]}  Rd5 {[%clk 0:02:10]} 28. Nc4 {[%clk 0:01:33]}  Rxb5+ {[%clk 0:02:09]} 29. Ka1 {[%clk 0:01:32]}  Nxh5 {[%clk 0:02:06]} 30. Nd6 {[%clk 0:01:30]}  Rd5 {[%clk 0:01:56]} 31. Nde4 {[%clk 0:01:23]}  Nxg3 {[%clk 0:01:55]} 32. fxg3 {[%clk 0:01:20]}  Rd4 {[%clk 0:01:46]} 33. Nc3 {[%clk 0:01:07]}  e5 {[%clk 0:01:40]} 0-1


[Site "https://www.chess.com"]

[Event "Titled Tuesday Blitz May 9 Early 2023"]
[White "Namitbir Singh Walia"]
[Black "Morefield, Jason"]
[WhiteFideId "35071068"]
[BlackFideId "30920825"]
[WhiteElo "2239"]
[BlackElo "2171"]
[Result "0-1"]
[Round "06"]
[TimeControl "180+2"]
[Date "2023.05.09"]
[WhiteClock "0:00:04"]
[BlackClock "0:01:10"]

1. e4 {[%clk 0:03:00]}  b6 {[%clk 0:02:54]} 2. d4 {[%clk 0:02:57]}  Bb7 {[%clk 0:02:54]} 3. Bd3 {[%clk 0:02:56]}  e6 {[%clk 0:02:54]} 4. Qe2 {[%clk 0:02:50]}  Nf6 {[%clk 0:02:49]} 5. Bg5 {[%clk 0:02:45]}  h6 {[%clk 0:02:44]} 6. Bh4 {[%clk 0:02:41]}  Be7 {[%clk 0:02:45]} 7. Nd2 {[%clk 0:02:41]}  d5 {[%clk 0:02:44]} 8. e5 {[%clk 0:02:32]}  Nfd7 {[%clk 0:02:44]} 9. Bxe7 {[%clk 0:02:31]}  Qxe7 {[%clk 0:02:45]} 10. c3 {[%clk 0:02:31]}  c5 {[%clk 0:02:45]} 11. f4 {[%clk 0:02:28]}  Nc6 {[%clk 0:02:41]} 12. Ngf3 {[%clk 0:02:23]}  cxd4 {[%clk 0:02:39]} 13. Nxd4 {[%clk 0:01:52]}  Nxd4 {[%clk 0:02:35]} 14. cxd4 {[%clk 0:01:53]}  Qb4 {[%clk 0:02:34]} 15. Qe3 {[%clk 0:01:51]}  Qxb2 {[%clk 0:02:32]} 16. O-O {[%clk 0:01:52]}  Rc8 {[%clk 0:02:29]} 17. f5 {[%clk 0:01:44]}  Rc3 {[%clk 0:01:41]} 18. fxe6 {[%clk 0:01:20]}  fxe6 {[%clk 0:01:42]} 19. Rab1 {[%clk 0:00:35]}  Qa3 {[%clk 0:01:31]} 20. Rb3 {[%clk 0:00:24]}  Rxb3 {[%clk 0:01:30]} 21. axb3 {[%clk 0:00:25]}  Rf8 {[%clk 0:01:25]} 22. Bb5 {[%clk 0:00:16]}  Rxf1+ {[%clk 0:01:23]} 23. Nxf1 {[%clk 0:00:16]}  a6 {[%clk 0:01:19]} 24. Bxd7+ {[%clk 0:00:16]}  Kxd7 {[%clk 0:01:19]} 25. Qg3 {[%clk 0:00:13]}  Qe7 {[%clk 0:01:18]} 26. Nd2 {[%clk 0:00:12]}  a5 {[%clk 0:01:19]} 27. Qd3 {[%clk 0:00:12]}  Kc7 {[%clk 0:01:17]} 28. Nf3 {[%clk 0:00:09]}  Kb8 {[%clk 0:01:16]} 29. Qb5 {[%clk 0:00:09]}  Ka7 {[%clk 0:01:16]} 30. g3 {[%clk 0:00:08]}  Qc7 {[%clk 0:01:15]} 31. Kg2 {[%clk 0:00:07]}  Qc2+ {[%clk 0:01:15]} 32. Kh3 {[%clk 0:00:07]}  g5 {[%clk 0:01:10]} 33. Qd7 {[%clk 0:00:05]}  g4+ {[%clk 0:01:10]} 34. Kxg4 {[%clk 0:00:04]}  Qf5+ {[%clk 0:01:10]} 0-1


[Site "https://www.chess.com"]

[Event "Titled Tuesday Blitz May 9 Early 2023"]
[White "Turzo, Attila"]
[Black "Goltsev, Dmitry"]
[WhiteFideId "704954"]
[BlackFideId "24176710"]
[WhiteElo "2485"]
[BlackElo "2356"]
[Result "0-1"]
[Round "06"]
[TimeControl "180+2"]
[Date "2023.05.09"]
[WhiteClock "0:00:11"]
[BlackClock "0:00:08"]

1. d4 {[%clk 0:03:00]}  Nf6 {[%clk 0:02:59]} 2. Nf3 {[%clk 0:02:58]}  e6 {[%clk 0:03:00]} 3. Bf4 {[%clk 0:02:58]}  d5 {[%clk 0:03:00]} 4. e3 {[%clk 0:02:58]}  c5 {[%clk 0:03:00]} 5. c3 {[%clk 0:02:58]}  Nc6 {[%clk 0:03:01]} 6. Nbd2 {[%clk 0:02:58]}  Bd6 {[%clk 0:03:01]} 7. Bg3 {[%clk 0:02:58]}  O-O {[%clk 0:03:02]} 8. Bd3 {[%clk 0:02:58]}  Re8 {[%clk 0:03:01]} 9. Ne5 {[%clk 0:02:58]}  Qc7 {[%clk 0:03:00]} 10. f4 {[%clk 0:02:57]}  cxd4 {[%clk 0:03:00]} 11. exd4 {[%clk 0:02:56]}  Nd7 {[%clk 0:03:00]} 12. Bxh7+ {[%clk 0:02:53]}  Kf8 {[%clk 0:03:00]} 13. Qh5 {[%clk 0:02:44]}  Nf6 {[%clk 0:02:59]} 14. Qh4 {[%clk 0:02:40]}  Ke7 {[%clk 0:02:46]} 15. Bd3 {[%clk 0:02:38]}  a6 {[%clk 0:02:45]} 16. O-O {[%clk 0:02:33]}  Bd7 {[%clk 0:02:44]} 17. f5 {[%clk 0:02:20]}  Rh8 {[%clk 0:02:43]} 18. Qf4 {[%clk 0:02:20]}  Rh5 {[%clk 0:02:37]} 19. Rae1 {[%clk 0:02:17]}  Rah8 {[%clk 0:02:34]} 20. fxe6 {[%clk 0:02:15]}  Bxe6 {[%clk 0:02:34]} 21. Ndf3 {[%clk 0:01:59]}  Nd7 {[%clk 0:02:21]} 22. Nxc6+ {[%clk 0:01:28]}  bxc6 {[%clk 0:02:17]} 23. Ne5 {[%clk 0:01:27]}  Nxe5 {[%clk 0:02:12]} 24. dxe5 {[%clk 0:01:25]}  Bc5+ {[%clk 0:02:11]} 25. Kh1 {[%clk 0:01:25]}  a5 {[%clk 0:02:06]} 26. Be2 {[%clk 0:01:14]}  R5h7 {[%clk 0:02:01]} 27. Bg4 {[%clk 0:01:14]}  Qd7 {[%clk 0:01:50]} 28. Bxe6 {[%clk 0:01:08]}  Qxe6 {[%clk 0:01:51]} 29. Qf5 {[%clk 0:01:09]}  Rh5 {[%clk 0:01:28]} 30. Qxe6+ {[%clk 0:01:06]}  Kxe6 {[%clk 0:01:29]} 31. h3 {[%clk 0:01:06]}  a4 {[%clk 0:01:17]} 32. b4 {[%clk 0:01:02]}  Bb6 {[%clk 0:01:12]} 33. Rf3 {[%clk 0:00:56]}  Rc8 {[%clk 0:00:56]} 34. Ref1 {[%clk 0:00:52]}  Rc7 {[%clk 0:00:53]} 35. Bf4 {[%clk 0:00:48]}  Rh4 {[%clk 0:00:50]} 36. g4 {[%clk 0:00:46]}  c5 {[%clk 0:00:40]} 37. bxc5 {[%clk 0:00:45]}  Bxc5 {[%clk 0:00:40]} 38. Kg2 {[%clk 0:00:44]}  Rb7 {[%clk 0:00:39]} 39. Bc1 {[%clk 0:00:40]}  Kxe5 {[%clk 0:00:28]} 40. Rxf7 {[%clk 0:00:38]}  Rxf7 {[%clk 0:00:26]} 41. Rxf7 {[%clk 0:00:39]}  Ke4 {[%clk 0:00:24]} 42. Rxg7 {[%clk 0:00:34]}  Kd3 {[%clk 0:00:23]} 43. Rd7 {[%clk 0:00:34]}  Kc4 {[%clk 0:00:19]} 44. Rc7 {[%clk 0:00:28]}  Kb5 {[%clk 0:00:16]} 45. Bg5 {[%clk 0:00:25]}  Rh8 {[%clk 0:00:15]} 46. h4 {[%clk 0:00:25]}  Re8 {[%clk 0:00:13]} 47. Bf6 {[%clk 0:00:24]}  Re2+ {[%clk 0:00:12]} 48. Kf3 {[%clk 0:00:25]}  Rf2+ {[%clk 0:00:12]} 49. Kg3 {[%clk 0:00:18]}  Rxf6 {[%clk 0:00:13]} 50. g5 {[%clk 0:00:16]}  Bd6+ {[%clk 0:00:10]} 51. Kg4 {[%clk 0:00:16]}  Rf4+ {[%clk 0:00:10]} 52. Kh5 {[%clk 0:00:16]}  Bxc7 {[%clk 0:00:10]} 53. g6 {[%clk 0:00:16]}  Be5 {[%clk 0:00:10]} 54. Kg5 {[%clk 0:00:16]}  Rf1 {[%clk 0:00:07]} 55. h5 {[%clk 0:00:16]}  Rg1+ {[%clk 0:00:07]} 56. Kf5 {[%clk 0:00:16]}  Bxc3 {[%clk 0:00:08]} 57. h6 {[%clk 0:00:15]}  d4 {[%clk 0:00:08]} 58. h7 {[%clk 0:00:13]}  d3 {[%clk 0:00:08]} 59. Ke4 {[%clk 0:00:12]}  d2 {[%clk 0:00:08]} 60. g7 {[%clk 0:00:11]}  Bxg7 {[%clk 0:00:08]} 0-1


[Site "https://www.chess.com"]

[Event "Titled Tuesday Blitz May 9 Early 2023"]
[White "Mitusov, Semen"]
[Black "Arat, Ufuk Sezen"]
[WhiteFideId "14151049"]
[BlackFideId "6309089"]
[WhiteElo "2389"]
[BlackElo "2289"]
[Result "1-0"]
[Round "06"]
[TimeControl "180+2"]
[Date "2023.05.09"]
[WhiteClock "0:01:39"]
[BlackClock "0:00:19"]

1. e4 {[%clk 0:03:00]}  c5 {[%clk 0:02:58]} 2. Nf3 {[%clk 0:03:00]}  e6 {[%clk 0:02:58]} 3. d4 {[%clk 0:03:00]}  cxd4 {[%clk 0:02:59]} 4. Nxd4 {[%clk 0:03:01]}  Nc6 {[%clk 0:03:00]} 5. Nc3 {[%clk 0:02:59]}  Qc7 {[%clk 0:03:00]} 6. Be3 {[%clk 0:02:56]}  a6 {[%clk 0:03:00]} 7. g4 {[%clk 0:02:57]}  b5 {[%clk 0:03:00]} 8. Nxc6 {[%clk 0:02:57]}  dxc6 {[%clk 0:03:01]} 9. Qf3 {[%clk 0:02:52]}  Bb7 {[%clk 0:03:01]} 10. h4 {[%clk 0:02:47]}  Nf6 {[%clk 0:03:01]} 11. g5 {[%clk 0:02:38]}  Nd7 {[%clk 0:03:01]} 12. O-O-O {[%clk 0:02:37]}  Bd6 {[%clk 0:02:50]} 13. Bd4 {[%clk 0:02:31]}  Be5 {[%clk 0:02:42]} 14. Bxe5 {[%clk 0:02:27]}  Nxe5 {[%clk 0:02:42]} 15. Qe3 {[%clk 0:02:27]}  O-O {[%clk 0:02:31]} 16. f4 {[%clk 0:02:27]}  Ng6 {[%clk 0:02:31]} 17. f5 {[%clk 0:02:21]}  exf5 {[%clk 0:02:26]} 18. exf5 {[%clk 0:02:21]}  Rfe8 {[%clk 0:02:23]} 19. Qc5 {[%clk 0:02:16]}  Qf4+ {[%clk 0:02:14]} 20. Kb1 {[%clk 0:02:16]}  Nxh4 {[%clk 0:02:11]} 21. f6 {[%clk 0:02:10]}  Rad8 {[%clk 0:01:57]} 22. Bd3 {[%clk 0:02:09]}  Ng6 {[%clk 0:01:45]} 23. fxg7 {[%clk 0:02:06]}  Qe5 {[%clk 0:01:32]} 24. Qf2 {[%clk 0:02:01]}  Qxg7 {[%clk 0:01:18]} 25. Ne4 {[%clk 0:01:57]}  Rxe4 {[%clk 0:00:27]} 26. Bxe4 {[%clk 0:01:58]}  Re8 {[%clk 0:00:21]} 27. Bxg6 {[%clk 0:01:50]}  Qxg6 {[%clk 0:00:20]} 28. Rh6 {[%clk 0:01:47]}  Qg7 {[%clk 0:00:19]} 29. a3 {[%clk 0:01:43]}  c5 {[%clk 0:00:16]} 30. Qxc5 {[%clk 0:01:41]}  Rc8 {[%clk 0:00:15]} 31. Qxc8+ {[%clk 0:01:39]}  Bxc8 {[%clk 0:00:16]} 32. Rd8+ {[%clk 0:01:39]}  Qf8 {[%clk 0:00:17]} 33. Rxf8+ {[%clk 0:01:39]}  Kxf8 {[%clk 0:00:18]} 34. Rxh7 {[%clk 0:01:39]}  Bf5 {[%clk 0:00:19]} 35. Rh6 {[%clk 0:01:38]}  Bg6 {[%clk 0:00:19]} 36. Rh8+ {[%clk 0:01:38]}  Ke7 {[%clk 0:00:18]} 37. Ra8 {[%clk 0:01:39]}  Ke6 {[%clk 0:00:15]} 38. Rxa6+ {[%clk 0:01:37]}  Kf5 {[%clk 0:00:16]} 39. Ra5 {[%clk 0:01:38]}  Kxg5 {[%clk 0:00:17]} 40. Rxb5+ {[%clk 0:01:39]}  Kf4 {[%clk 0:00:17]} 41. a4 {[%clk 0:01:39]}  Be4 {[%clk 0:00:18]} 42. a5 {[%clk 0:01:39]}  f5 {[%clk 0:00:19]} 43. a6 {[%clk 0:01:39]}  Ke3 {[%clk 0:00:19]} 44. a7 {[%clk 0:01:39]}  f4 {[%clk 0:00:18]} 45. Re5 {[%clk 0:01:39]}  f3 {[%clk 0:00:19]} 1-0


[Site "https://www.chess.com"]